fUSD/lending_fUSD_20240421
["ID","MTS","AMOUNT","RATE_DAILY","PERIOD"]
[323146665,1713712243847,-500.0,0.00016862,2]
[323146666,1713712243856,-500.0,0.00016862,2]
[323146667,1713712243866,-500.0,0.00016862,2]
[323146668,1713712243874,-636.42,0.00016862,2]
[323146669,1713712243883,-500.0,0.00016862,2]
[323146670,1713712243893,-2409.59,0.00016862,2]
[323146671,1713712243902,-500.0,0.00016862,2]
[323146672,1713712243911,-500.0,0.00016862,2]
[323146673,1713712243920,-500.0,0.00016862,2]
[323146674,1713712243930,-1145.3,0.00016862,2]
[323146675,1713712243941,-500.0,0.00016862,2]
[323146676,1713712243951,-500.0,0.00016862,2]
[323146677,1713712243961,-671.11,0.00016862,2]
[323146678,1713712243971,-491.95921461,0.00016862,2]
[323146679,1713712243980,-3821.65,0.00016862,2]
[323146680,1713712243989,-500.0,0.00016862,2]
[323146681,1713712243999,-500.0,0.00016862,2]
[323146682,1713712244009,-500.49314312,0.00016862,2]
[323146683,1713712244018,-1073.63,0.00016862,2]
[323146684,1713712244028,-464.34,0.00016862,2]
[323146685,1713712244038,-500.0,0.00016862,2]
[323146686,1713712244047,-500.0,0.00016862,2]
[323146687,1713712244057,-2084.98,0.00016862,2]
[323146688,1713712244066,-500.0,0.00016862,2]
[323146689,1713712244075,-8501.66,0.00016862,2]
[323146690,1713712244085,-3379.47,0.00016862,2]
[323146691,1713712244095,-500.0,0.00016862,2]
[323146692,1713712244104,-649.03681946,0.00016862,2]
[323146693,1713712244114,-500.0,0.00016862,2]
[323146694,1713712244123,-500.0,0.00016862,2]
[323146695,1713712244133,-500.0,0.00016862,2]
[323146696,1713712244142,-500.0,0.00016862,2]
[323146697,1713712244151,-500.0,0.00016862,2]
[323146698,1713712244161,-500.0,0.00016862,2]
[323146699,1713712244171,-259.04,0.00016862,2]
[323146700,1713712244181,-500.0,0.00016862,2]
[323146701,1713712244190,-2390.76,0.00016862,2]
[323146702,1713712244200,-710.6,0.00016862,2]
[323146703,1713712244209,-500.0,0.00016862,2]
[323146704,1713712244218,-7196.06471737,0.00016863,2]
[323146705,1713712244586,-291.44554907,0.00016863,2]
[323146706,1713712245344,-0.0011998,0.00016863,2]
[323146707,1713712245355,-100988.70479904,0.00016863,2]
[323146708,1713712245365,-1068.79,0.00016865,2]
[323146709,1713712245375,-2011.89,0.00016865,2]
[323146710,1713712245385,-3269.71,0.00016865,2]
[323146711,1713712245394,-2354.52,0.00016865,2]
[323146712,1713712245403,-3253.4,0.00016865,2]
[323146713,1713712245412,-4754.68,0.00016865,2]
[323146714,1713712245421,-2476.04,0.00016865,2]
[323146715,1713712245431,-2972.56,0.00016865,2]
[323146716,1713712245440,-94.18708386,0.00016865,2]
[323146717,1713712245451,-309.34345857,0.00016865,2]
[323146718,1713712245462,-5429.12216,0.00016865,2]
[323146719,1713712245473,-707.38729757,0.00016865,2]
[323146720,1713712245482,-528.81270243,0.00016865,2]
[323146721,1713712245498,-1119.05729757,0.00016865,2]
[323146722,1713712245507,-2568.15,0.00016865,2]
[323146723,1713712245517,-1057.70910579,0.00016865,2]
[323146724,1713712245534,-1308.00000413,0.00016865,2]
[323146725,1713712245545,-620.28510931,0.00016865,2]
[323146726,1713712245563,-2790.35578077,0.00016865,2]
[323146727,1713712245572,-2530.79,0.00016865,2]
[323146728,1713712245581,-4493.2,0.00016865,2]
[323146729,1713712245591,-5219.98457668,0.00016865,2]
[323146747,1713712246203,-313.55271974,0.00016861,2]
[323146749,1713712246213,-343.14041329,0.00016861,2]
[323146751,1713712246222,-487.74542332,0.00016865,2]
[323146753,1713712246231,-2935.81,0.00016865,2]
[323146755,1713712246240,-556.83,0.00016865,2]
[323146757,1713712246249,-1984.42,0.00016865,2]
[323146759,1713712246258,-3299.64,0.00016866,2]
[323146761,1713712246267,-1018.99,0.00016866,2]
[323146763,1713712246276,-201.69359386,0.00016866,2]
[323146765,1713712246286,-500.0,0.00016866,2]
[323146767,1713712246295,-1972.44,0.00016866,2]
[323146769,1713712246305,-2029.21,0.00016866,2]
[323146771,1713712246314,-500.0,0.00016866,2]
[323146773,1713712246324,-881.3,0.00016866,2]
[323146775,1713712246333,-500.0,0.00016866,2]
[323146777,1713712246342,-5158.49,0.00016866,2]
[323146779,1713712246351,-9316.73784979,0.00016866,2]
[323146781,1713712246363,-477.42445747,0.00016866,2]
[323146783,1713712246375,-13780.77769274,0.00016866,2]
[323146785,1713712246385,-868.64,0.00016866,2]
[323146787,1713712246394,-1412.83230728,0.00016866,2]
[323146801,1713712260378,1242.19154289,0.00012961,2]
[323146804,1713712942012,499.33,0.0001323,2]
[323146807,1713712982153,173.89181001,0.00012961,2]
[323146808,1713713058479,211.32800849,0.000139,2]
[323146809,1713713058498,2143.65085611,0.000139,2]
[323146810,1713713065440,262.22676469,0.000139,2]
[323146811,1713713067042,1594.1223792,0.000139,2]
[323146812,1713713067062,1788.02595548,0.000139,2]
[323146813,1713713067680,155.0,0.000139,2]
[323146814,1713713071508,213.89673121,0.000139,2]
[323146815,1713713077961,427.09455911,0.000139,2]
[323146816,1713713083447,166.301638,0.00013802,2]
[323146817,1713713084097,376.7617514,0.000139,2]
[323146818,1713713085427,872.9193648,0.000139,2]
[323146819,1713713085448,1342.12440157,0.000139,2]
[323146820,1713713092458,2657.87559843,0.000139,2]
[323146821,1713713092484,4000.0,0.000139,2]
[323146823,1713713112618,1251.6875747,0.000137,2]
[323146826,1713713191830,10000.0,0.000138,2]
[323146827,1713713290249,212.26115335,0.00013,2]
[323146828,1713713293379,5000.0,0.000138,2]
[323146833,1713713432295,-792.53572334,0.0001387,2]
[323146839,1713713432343,-663.65504999,0.0001387,2]
[323146843,1713713432404,-956.96982121,0.0001387,2]
[323146844,1713713432416,-1908.69349122,0.0001387,2]
[323146845,1713713432425,-255.3668917,0.0001387,2]
[323146846,1713713432435,-3758.67774221,0.0001387,2]
[323146847,1713713432444,-487.22450388,0.00013871,2]
[323146848,1713713432453,-215.99830675,0.00013871,2]
[323146849,1713713432462,-706.34979977,0.00013872,2]
[323146850,1713713432472,-1128.39057253,0.00013873,2]
[323146851,1713713432481,-150.0,0.00013873,2]
[323146852,1713713432491,-150.0,0.00013873,2]
[323146853,1713713432500,-287.87012601,0.00013873,2]
[323146854,1713713432528,-469.0,0.00013873,2]
[323146855,1713713432540,-55743.90259188,0.00013873,2]
[323146856,1713713432552,-1001.35638586,0.00013873,2]
[323146857,1713713432564,-2109.7042,0.00013873,2]
[323146858,1713713432595,-1196.91798285,0.00013873,2]
[323146859,1713713432606,-265.0166534,0.00013873,2]
[323146860,1713713432631,-1116.59202847,0.00013873,2]
[323146861,1713713432641,-379.36889392,0.00013874,2]
[323146862,1713713432652,-1135.31023447,0.00013874,2]
[323146863,1713713432664,-554.58560878,0.00013874,2]
[323146864,1713713432676,-854.8607206,0.00013874,2]
[323146865,1713713432687,-1626.72135298,0.00013874,2]
[323146866,1713713432699,-562.4996314,0.00013874,2]
[323146885,1713713438334,-1703.41591,0.00013869,2]
[323146886,1713713438438,-2045.40519867,0.00013869,2]
[323146887,1713713438495,-6005.40001034,0.00013869,2]
[323146888,1713713438508,-13593.02568124,0.00013869,2]
[323146889,1713713438518,-2226.52436255,0.00013874,2]
[323146890,1713713438528,-889.87347124,0.00013919,2]
[323146891,1713713438538,-621.37,0.00014908,2]
[323146892,1713713438548,-499.99,0.00014913,2]
[323146893,1713713438558,-657.97,0.00014913,2]
[323146894,1713713438569,-500.0,0.00014934,2]
[323146895,1713713438578,-3028.1,0.00014934,2]
[323146896,1713713438588,-150.99,0.00014934,2]
[323146897,1713713438600,-750.0,0.00015,2]
[323146898,1713713438608,-3056.89,0.00015,2]
[323146899,1713713438617,-676.23,0.00015,2]
[323146900,1713713438625,-150.99,0.00015,2]
[323146901,1713713438634,-216.59,0.00015004,2]
[323146902,1713713438642,-200.0,0.00015006,2]
[323146903,1713713438650,-1839.13,0.00015007,2]
[323146904,1713713438659,-10806.68,0.00015109,2]
[323146905,1713713438667,-210.0,0.0001526,2]
[323146906,1713713438675,-210.0,0.0001526,2]
[323146907,1713713438683,-499.33,0.00015494,2]
[323146908,1713713438691,-236.74,0.00015563,3]
[323146909,1713713438700,-50849.53637484,0.00015573,2]
[323146910,1713713438712,-1612.375,0.00015573,2]
[323146911,1713713438722,-1264.89,0.00015573,2]
[323146913,1713713438740,-42449.07862516,0.00015573,2]
[323146915,1713713438749,-204.38,0.00015685,2]
[323146916,1713713438759,-167.46,0.00015839,2]
[323146917,1713713438768,-1000.0,0.00015846,2]
[323146918,1713713438777,-558.97,0.0001611,10]
[323146920,1713713438787,-12206.38765613,0.00016116,2]
[323146922,1713713438798,-413.4345143,0.00016116,2]
[323146927,1713713438836,-2003.58782957,0.00016116,2]
[323146929,1713713438847,-1381.67,0.00016116,2]
[323146931,1713713438856,-7326.41,0.00016116,2]
[323146933,1713713438865,-574.0,0.00016411,2]
[323146935,1713713438874,-500.0,0.00016438,2]
[323146937,1713713438883,-986.81,0.00016438,2]
[323146939,1713713438892,-500.0,0.00016438,2]
[323146941,1713713438901,-500.0,0.00016438,2]
[323146943,1713713438911,-1074.33,0.00016438,2]
[323146945,1713713438921,-500.0,0.00016438,2]
[323146947,1713713438930,-500.0,0.00016438,2]
[323146949,1713713438939,-195.2,0.00016438,2]
[323146951,1713713438948,-711.82,0.00016438,2]
[323146953,1713713438957,-500.0,0.00016438,2]
[323146955,1713713438966,-797.38,0.00016438,2]
[323146957,1713713438975,-500.0,0.00016438,2]
[323146959,1713713438984,-1701.41,0.00016438,2]
[323146961,1713713438993,-500.0,0.00016438,2]
[323146963,1713713439002,-500.0,0.00016438,2]
[323146965,1713713439011,-500.0,0.00016438,2]
[323146967,1713713439021,-187.790856,0.00016438,2]
[323146969,1713713439030,-166.301638,0.0001666,2]
[323146970,1713713439043,-683.926359,0.0001666,2]
[323146971,1713713439053,-255.80174823,0.00016689,2]
[323146972,1713713439062,-683.92635897,0.00016692,2]
[323146973,1713713439071,-677.13,0.00016699,2]
[323146974,1713713439081,-3107.06,0.00016699,2]
[323146975,1713713439093,-500.0,0.00016699,2]
[323146976,1713713439103,-500.0,0.00016699,2]
[323146977,1713713439113,-4905.4,0.00016699,2]
[323146978,1713713439124,-883.41,0.00016699,2]
[323146979,1713713439134,-732.94,0.00016699,2]
[323146980,1713713439143,-3228.73,0.00016699,2]
[323146981,1713713439153,-6681.95,0.00016699,2]
[323146982,1713713439162,-1163.24,0.00016699,2]
[323146983,1713713439171,-4900.63,0.00016699,2]
[323146984,1713713439180,-9526.42,0.00016699,2]
[323146985,1713713439190,-9243.36,0.00016699,2]
[323146986,1713713439198,-5423.14,0.00016699,2]
[323146987,1713713439208,-6236.87,0.00016699,2]
[323146988,1713713439217,-500.0,0.00016699,2]
[323146989,1713713439226,-2009.98,0.00016699,2]
[323146990,1713713439235,-1432.46,0.00016699,2]
[323146991,1713713439244,-1031.03,0.00016699,2]
[323146992,1713713439254,-1003.96,0.00016699,2]
[323146993,1713713439264,-593.59,0.00016699,2]
[323146994,1713713439273,-5753.19,0.00016699,2]
[323146995,1713713439282,-1027.5,0.00016699,2]
[323146996,1713713439291,-1066.83,0.00016699,2]
[323146997,1713713439301,-3738.2,0.00016699,2]
[323146998,1713713439310,-10430.63,0.00016699,2]
[323146999,1713713439320,-500.0,0.00016699,2]
[323147000,1713713439329,-1774.22321,0.000167,2]
[323147001,1713713439339,-500.0,0.00016712,2]
[323147002,1713713439348,-986.81,0.00016712,2]
[323147003,1713713439357,-500.0,0.00016712,2]
[323147004,1713713439366,-1074.33,0.00016712,2]
[323147005,1713713439375,-500.0,0.00016712,2]
[323147006,1713713439384,-500.0,0.00016712,2]
[323147007,1713713439393,-500.0,0.00016712,2]
[323147008,1713713439406,-711.82,0.00016712,2]
[323147009,1713713439416,-500.0,0.00016712,2]
[323147010,1713713439425,-797.38,0.00016712,2]
[323147011,1713713439434,-500.0,0.00016712,2]
[323147012,1713713439444,-1701.41,0.00016712,2]
[323147013,1713713439453,-500.0,0.00016712,2]
[323147014,1713713439462,-500.0,0.00016712,2]
[323147015,1713713439471,-500.0,0.00016712,2]
[323147016,1713713439480,-683.92635897,0.00016723,2]
[323147017,1713713439489,-166.94,0.00016739,2]
[323147018,1713713439498,-548.33960924,0.0001675,2]
[323147019,1713713439507,-151.38,0.0001675,2]
[323147020,1713713439516,-254.91292133,0.0001675,2]
[323147021,1713713439525,-683.92635897,0.00016755,2]
[323147022,1713713439535,-3860.27,0.00016757,2]
[323147023,1713713439544,-500.0,0.00016757,2]
[323147024,1713713439553,-31363.4,0.00016757,2]
[323147025,1713713439743,-3957.23,0.00016757,2]
[323147026,1713713439752,-2899.72,0.00016757,2]
[323147027,1713713439761,-2972.65,0.00016757,2]
[323147028,1713713439770,-3943.23,0.00016757,2]
[323147029,1713713439779,-6415.75,0.00016757,2]
[323147030,1713713439788,-1206.25,0.00016757,2]
[323147031,1713713439797,-1548.47,0.00016757,2]
[323147032,1713713439807,-4833.36,0.00016757,2]
[323147033,1713713439816,-2202.59,0.00016757,2]
[323147034,1713713439825,-831.13,0.00016757,2]
[323147035,1713713439834,-858.42,0.00016757,2]
[323147036,1713713439844,-3872.12,0.00016757,2]
[323147037,1713713439853,-855.61,0.00016757,2]
[323147038,1713713439862,-500.0,0.00016757,2]
[323147039,1713713439872,-8077.09,0.00016757,2]
[323147040,1713713439881,-3722.38,0.00016757,2]
[323147041,1713713439890,-500.0,0.00016757,2]
[323147042,1713713439900,-3349.78,0.00016757,2]
[323147043,1713713439909,-6766.48,0.00016757,2]
[323147044,1713713439918,-1304.0,0.00016757,2]
[323147045,1713713439927,-768.29,0.00016757,2]
[323147046,1713713439937,-1806.15,0.00016757,2]
[323147047,1713713439948,-2501.99,0.00016757,2]
[323147048,1713713439957,-428.15705754,0.00016758,2]
[323147049,1713713439967,-1190.86800966,0.00016758,2]
[323147050,1713713439976,-1069.68814457,0.00016758,2]
[323147051,1713713439986,-251.14525574,0.00016758,2]
[323147052,1713713439995,-247.55578873,0.00016758,2]
[323147053,1713713440004,-272.87162335,0.00016758,2]
[323147054,1713713440013,-3494.17962188,0.00016758,2]
[323147055,1713713440023,-237.97548228,0.00016758,2]
[323147056,1713713440033,-425.07060214,0.00016758,2]
[323147057,1713713440043,-2213.88669959,0.00016758,2]
[323147058,1713713440056,-271.30520559,0.00016759,2]
[323147059,1713713440066,-493.15691584,0.00016759,2]
[323147060,1713713440075,-155.22242022,0.00016759,2]
[323147061,1713713440085,-216.33333306,0.00016759,2]
[323147062,1713713440098,-208.2677438,0.00016759,2]
[323147064,1713713440108,-157.58641774,0.0001676,2]
[323147066,1713713440117,-157.58641774,0.0001676,2]
[323147067,1713713440127,-155.0,0.0001676,2]
[323147068,1713713440136,-350.0,0.0001676,2]
[323147069,1713713440146,-8457.7746,0.0001676,2]
[323147070,1713713440155,-196.98302221,0.0001676,2]
[323147071,1713713440164,-61262.4856,0.0001676,2]
[323147072,1713713440174,-1000.0,0.0001676,2]
[323147073,1713713440183,-162310.9563,0.0001676,2]
[323147074,1713713440193,-171.25463459,0.0001676,2]
[323147075,1713713440202,-157.58641774,0.00016761,2]
[323147076,1713713440211,-196.98302217,0.00016764,2]
[323147077,1713713440220,-157.58641774,0.00016767,2]
[323147078,1713713440230,-157.58641774,0.00016767,2]
[323147079,1713713440239,-10000.0,0.00016767,2]
[323147081,1713713440248,-157.58641774,0.00016768,2]
[323147083,1713713440257,-196.98302217,0.00016768,2]
[323147085,1713713440267,-196.98302217,0.00016772,2]
[323147087,1713713440276,-157.58641774,0.00016774,2]
[323147089,1713713440285,-157.58641774,0.00016774,2]
[323147090,1713713440294,-157.58641774,0.00016775,2]
[323147091,1713713440303,-196.98302217,0.00016776,2]
[323147092,1713713440313,-196.98302217,0.0001678,2]
[323147093,1713713440322,-157.58641774,0.00016781,2]
[323147094,1713713440332,-157.58641774,0.00016781,2]
[323147095,1713713440342,-157.58641774,0.00016781,2]
[323147096,1713713440351,-196.98302217,0.00016784,2]
[323147097,1713713440360,-199.24087466,0.00016786,2]
[323147098,1713713440369,-683.92635897,0.00016786,2]
[323147099,1713713440378,-356.85403578,0.00016786,2]
[323147100,1713713440387,-787.93208874,0.00016788,2]
[323147101,1713713440396,-157.58641774,0.00016788,2]
[323147102,1713713440406,-157.58641774,0.00016788,2]
[323147103,1713713440415,-157.58641774,0.00016788,2]
[323147104,1713713440424,-196.98302217,0.00016788,2]
[323147105,1713713440432,-399.77151459,0.00016788,2]
[323147106,1713713440441,-4003.87437324,0.00016788,2]
[323147107,1713713440451,-4581.21114034,0.00016844,2]
[323147108,1713713440461,-254.91292133,0.00016848,2]
[323147109,1713713440470,-254.91292133,0.00016848,2]
[323147110,1713713440479,-151.38,0.00016849,2]
[323147111,1713713440488,-151.38,0.0001685,2]
[323147112,1713713440497,-156630.34574927,0.00016858,2]
[323147113,1713713440517,-1728.98781675,0.00016858,2]
[323147114,1713713440528,-1053.69,0.00016858,2]
[323147115,1713713440553,-293.68855602,0.00016858,2]
[323147117,1713713441016,-3579.51442141,0.00016858,2]
[323147118,1713713441028,-1726.26955887,0.00016858,2]
[323147119,1713713441040,-3268.0669238,0.00016858,2]
[323147120,1713713441056,-34962.86130738,0.00016858,2]
[323147121,1713713441067,-1247.575,0.00016858,2]
[323147122,1713713441079,-1098.90001,0.00016858,2]
[323147123,1713713441135,-375958.85433805,0.00016858,2]
[323147124,1713713441144,-156.60467947,0.00016858,2]
[323147125,1713713441153,-269.89132436,0.00016858,2]
[323147126,1713713441163,-325.37506637,0.00016858,2]
[323147127,1713713441172,-1662.12501448,0.00016858,2]
[323147128,1713713441181,-288.09743,0.00016858,2]
[323147129,1713713441191,-212.14634539,0.00016858,2]
[323147130,1713713441200,-303.53418169,0.00016858,2]
[323147131,1713713441210,-267.23064809,0.00016858,2]
[323147132,1713713441220,-220.97155245,0.00016858,2]
[323147133,1713713441230,-166.27150602,0.00016858,2]
[323147134,1713713441239,-174.24383052,0.00016858,2]
[323147135,1713713441249,-155.9558485,0.00016858,2]
[323147136,1713713441258,-195.97917074,0.00016858,2]
[323147137,1713713441268,-155.1119593,0.00016858,2]
[323147138,1713713441278,-156.01071064,0.00016858,2]
[323147139,1713713441287,-155.42199688,0.00016858,2]
[323147140,1713713441297,-224.81515405,0.00016858,2]
[323147141,1713713441307,-245.56779934,0.00016858,2]
[323147142,1713713441317,-155.0,0.00016858,2]
[323147143,1713713441327,-155.59422064,0.00016858,2]
[323147144,1713713441337,-246.38281058,0.00016858,2]
[323147145,1713713441347,-207.88378701,0.00016858,2]
[323147146,1713713441356,-408.75244651,0.00016858,2]
[323147147,1713713441365,-166.3767378,0.00016858,2]
[323147148,1713713441375,-157.80338373,0.00016858,2]
[323147149,1713713441385,-309.59058991,0.00016858,2]
[323147150,1713713441395,-423.8176794,0.00016858,2]
[323147151,1713713441404,-267.70067574,0.00016858,2]
[323147152,1713713441413,-385.82293825,0.00016858,2]
[323147153,1713713441422,-350.77166126,0.00016858,2]
[323147154,1713713441432,-247.81410192,0.00016858,2]
[323147155,1713713441441,-162.68520801,0.00016858,2]
[323147156,1713713441451,-416.16677583,0.00016858,2]
[323147157,1713713441460,-5299860.66915961,0.00016858,2]
[323147158,1713713441473,-89534.59415311,0.00016858,2]
[323147159,1713713441484,-122770.64209511,0.00016858,2]
[323147160,1713713441508,-264.4956,0.00016858,2]
[323147161,1713713441524,-329.64386627,0.00016858,2]
[323147162,1713713441537,-3220.47496843,0.00016858,2]
[323147163,1713713443370,-500.0,0.00016438,2]
[323147164,1713713443380,-110.61,0.00016712,2]
[323147165,1713713443391,-389.39,0.00016712,2]
[323147166,1713713443401,-220.61,0.00016848,3]
[323147167,1713713443618,-489.61,0.00016848,3]
[323147168,1713713443629,-16.1547629,0.00016858,2]
[323147169,1713713443649,-365.0,0.00016858,2]
[323147170,1713713443710,-1088.45160564,0.00016858,2]
[323147171,1713713443722,-1217.46,0.00016858,2]
[323147172,1713713443814,-419.74975414,0.00016858,2]
[323147173,1713713446339,-500.0,0.00016438,2]
[323147174,1713713446350,-1008.03,0.00016438,2]
[323147175,1713713446359,-500.0,0.00016438,2]
[323147176,1713713446368,-19487.76778034,0.00016699,2]
[323147178,1713713446395,-10568.82221966,0.00016699,2]
[323147179,1713713446406,-500.0,0.00016712,2]
[323147180,1713713446416,-1008.03,0.00016712,2]
[323147181,1713713446426,-500.0,0.00016712,2]
[323147182,1713713446436,-1686.56,0.00016757,2]
[323147183,1713713446446,-217.99148549,0.00016847,2]
[323147184,1713713446455,-1125.18561464,0.00016847,2]
[323147185,1713713446464,-178292.71565336,0.00016858,2]
[323147186,1713713446615,-500.0,0.00016438,2]
[323147187,1713713446625,-1735.2416862,0.00016858,2]
[323147188,1713713446636,-25069.66168172,0.00016858,2]
[323147189,1713713446733,-500.0,0.00016712,2]
[323147190,1713713446742,-2540.2,0.00016858,2]
[323147198,1713713855400,-600.0,0.00013849,2]
[323147199,1713713936411,486.83,0.00013036,2]
[323147200,1713714090083,66989.23080781,0.00013,2]
[323147201,1713714090106,2748.3124253,0.00013,2]
[323147202,1713714090128,4000.0,0.00013,2]
[323147203,1713714090149,4000.0,0.00013,2]
[323147204,1713714090170,4000.0,0.00013,2]
[323147205,1713714090190,4000.0,0.00013,2]
[323147206,1713714090213,76439.0,0.00013,2]
[323147207,1713714090233,2078.03686332,0.00013,2]
[323147208,1713714090257,4000.0,0.00013,2]
[323147209,1713714090277,4000.0,0.00013,2]
[323147210,1713714206361,155.0,0.00011696,2]
[323147211,1713714224294,157.10515557,0.00011696,2]
[323147212,1713714329245,243.9954998,0.00011697,2]
[323147213,1713714342057,183.81215809,0.00011697,2]
[323147214,1713714343591,156.19509503,0.00011697,2]
[323147215,1713714399243,1000.0,0.00011906,2]
[323147216,1713714399489,1000.0,0.00011939,2]
[323147217,1713714399717,1000.0,0.00011972,2]
[323147218,1713714438833,313.70598498,0.00011999,2]
[323147219,1713714442872,155.0,0.00011999,2]
[323147220,1713714445128,684.0277903,0.00011999,2]
[323147221,1713714447942,4330.90690104,0.00011999,2]
[323147222,1713714448313,155.0,0.00011999,2]
[323147223,1713714448979,155.0,0.00011998,2]
[323147224,1713714449478,200.0,0.00012,4]
[323147225,1713714451359,200.0,0.0001125,2]
[323147226,1713714451861,378.94447879,0.00011998,2]
[323147227,1713714453370,305.25449563,0.00011999,2]
[323147228,1713714455801,4321.85408576,0.00011999,2]
[323147229,1713714455920,487.22450388,0.00011999,2]
[323147230,1713714459852,343.26553462,0.00011999,2]
[323147231,1713714461238,565.28112951,0.00011999,2]
[323147232,1713714466875,2179.20192415,0.00011999,2]
[323147233,1713714470204,157.21544021,0.00011999,2]
[323147234,1713714470590,155.0,0.00011999,2]
[323147235,1713714476300,35248.80407098,0.00011999,2]
[323147236,1713714479940,615.43,0.00011615,2]
[323147237,1713714482166,192.70495298,0.00011999,2]
[323147238,1713714483463,1293.76132614,0.00011999,2]
[323147239,1713714483964,150.0,0.00011999,2]
[323147240,1713714485087,444.3911085,0.00011999,2]
[323147241,1713714485156,155.0,0.00011999,2]
[323147242,1713714501924,797.27546289,0.00011433,2]
[323147243,1713714507908,162.912235,0.00011999,2]
[323147244,1713714514091,7339.8708047,0.00011999,2]
[323147245,1713714515815,150.0,0.00011608,2]
[323147246,1713714518546,464.99858826,0.00011999,2]
[323147247,1713714523109,176.59,9.286e-05,2]
[323147248,1713714534227,487.22450388,0.00011999,2]
[323147249,1713714541865,565.28112951,0.00011999,2]
[323147250,1713714542113,2666.04,0.00011598,2]
[323147251,1713714542292,2666.04,0.00011601,2]
[323147252,1713714542517,2666.04,0.00011604,2]
[323147253,1713714542718,2666.04,0.00011607,2]
[323147254,1713714542944,2666.04,0.0001161,2]
[323147255,1713714543157,2666.04,0.00011613,2]
[323147256,1713714543414,2666.04,0.00011616,2]
[323147257,1713714543630,2666.04,0.00011619,2]
[323147258,1713714543920,2666.04,0.00011622,2]
[323147259,1713714544076,2666.04,0.00011625,2]
[323147260,1713714544286,2666.04,0.00011628,2]
[323147261,1713714544497,2666.04,0.00011631,2]
[323147262,1713714544736,2666.04,0.00011634,2]
[323147263,1713714544965,2666.04,0.00011638,2]
[323147264,1713714545178,2666.04,0.00011641,2]
[323147265,1713714545412,2666.04,0.00011644,2]
[323147266,1713714545649,2666.04,0.00011647,2]
[323147267,1713714547150,2666.04,0.0001165,2]
[323147268,1713714547237,2666.04,0.00011653,2]
[323147269,1713714547316,-548.73847536,0.00012,2]
[323147272,1713714547415,2666.04,0.00011656,2]
[323147276,1713714571665,623.98,9.676e-05,2]
[323147277,1713714571874,623.98,0.0001194,2]
[323147281,1713714582824,163.18,0.00011589,2]
[323147282,1713714604792,-207.72132305,0.00012003,2]
[323147283,1713714604817,-786.99155585,0.00012003,2]
[323147284,1713714604841,-7339.8708047,0.00012003,2]
[323147285,1713714604864,-1000.0,0.00012004,2]
[323147286,1713714604888,-14012.66311665,0.00012033,2]
[323147287,1713714605435,500.0,0.00011696,2]
[323147288,1713714607215,500.0,0.00011696,2]
[323147289,1713714607574,500.0,0.00011696,2]
[323147290,1713714611988,500.0,0.00011696,2]
[323147291,1713714615182,7501.72,0.00011711,2]
[323147292,1713714627116,250.0,0.00011608,2]
[323147295,1713714631492,-202.59043856,0.00012027,2]
[323147296,1713714631502,-301.74137588,0.00012033,2]
[323147297,1713714631513,-3262.2615,0.00012033,2]
[323147298,1713714631549,-5770.58080772,0.00012033,2]
[323147299,1713714631561,-264.87587186,0.00012034,2]
[323147300,1713714631570,-1946.96373211,0.00012034,2]
[323147301,1713714631579,-157.10756993,0.00012034,2]
[323147302,1713714631587,-191.93810029,0.00012034,2]
[323147303,1713714631597,-157.5092084,0.00012034,2]
[323147304,1713714631607,-499.03071948,0.00012034,2]
[323147305,1713714631616,-195.09724492,0.00012034,2]
[323147306,1713714631626,-421.14425475,0.00012034,2]